bitfinex/quotes_SOLUSD_20250310
["timestamp","ask_amount","ask_price","bid_price","bid_amount"]
[1741644967363,8.64,119.12,119.11,127.09297383]
[1741644967546,8.64,119.12,119.11,135.48857383]
[1741644967740,8.64,119.12,119.11,110.73776157]
[1741644968676,8.64,119.12,119.11,135.48857383]
[1741644968849,8.64,119.12,119.11,110.73776157]
[1741644969372,8.67,119.12,119.11,110.73776157]
[1741644969576,8.67,119.12,119.11,135.48857383]
[1741644969987,222.32,119.16,119.12,0.14216157]
[1741644970147,222.32,119.16,119.14,24.75081226]
[1741644970563,222.32,119.16,119.14,126.95081226]
[1741644970760,222.32,119.16,119.14,133.30281226]
[1741644971859,222.32,119.16,119.15,8.3927]
[1741644972058,222.32,119.16,119.15,110.5927]
[1741644972867,24.78081226,119.2,119.16,0.14216157]
[1741644973166,0.03,119.2,119.17,24.89297383]
[1741644973367,8.62,119.19,119.17,0.14216157]
[1741644974648,33.37081226,119.19,119.16,102.2]
[1741644974893,24.75081226,119.18,119.16,102.2]
[1741644975970,33.37081226,119.19,119.16,102.2]
[1741644976269,49.50162452,119.17,119.1,110.0848]
[1741644976566,24.75081226,119.11,119.09,102.263]
[1741644976779,24.75081226,119.16,119.09,0.063]
[1741644976780,33.37081226,119.1,119.09,0.063]
[1741644977767,58.12162452,119.1,119.09,0.063]
[1741644977969,66.51792452,119.1,119.09,0.063]
[1741644978364,56.79070447,119.1,119.09,0.063]
[1741644978573,96.56510894,119.1,119.09,0.063]
[1741644978964,96.56510894,119.1,119.07,0.063]
[1741644978965,0.14216157,119.09,119.07,0.063]
[1741644979163,96.84943208,119.1,119.07,0.063]
[1741644979164,59.77440447,119.08,119.07,0.063]
[1741644979554,59.77440447,119.07,119.06,0.063]
[1741644980077,20.0,119.03,118.99,0.063]
[1741644980273,39.77440447,119.0,118.99,0.063]
[1741644981298,71.375914,119.0,118.94,39.97956604]
[1741644981499,71.375914,119.0,118.96,40.05872761]
[1741644981672,39.77440447,118.99,118.95,47.22475093]
[1741644981879,8.62,118.99,118.96,39.77440447]
[1741644982073,8.62,118.99,118.97,8.4054]
[1741644982273,8.62,118.98,118.97,86.6054]
[1741644982660,8.62,118.98,118.97,78.2]
[1741644983076,8.62,118.98,118.97,117.97440447]
[1741644983277,8.62,119.0,118.97,117.97440447]
[1741644983481,8.62,119.0,118.99,20.0]
[1741644984080,8.62,119.0,118.99,68.46272761]
[1741644984271,222.32,119.02,119.0,0.28432314]
[1741644984589,222.32,119.02,119.01,39.77440447]
[1741644984776,222.32,119.02,119.0,118.11656604]
[1741644986268,222.32,119.02,119.01,8.4026]
[1741644990711,222.32,119.02,119.01,86.6026]
[1741644992391,8.62,119.03,119.01,39.91656604]
[1741644992605,12.99830542,119.06,119.02,40.05872761]
[1741644992903,39.77440447,119.05,119.02,9.6]
[1741644993219,39.77440447,119.04,119.01,9.6]
[1741644994088,39.77440447,119.04,119.02,0.063]
[1741644995072,48.39440447,119.05,119.02,0.063]
[1741644995277,39.77440447,119.04,119.02,0.063]
[1741644995587,39.77440447,119.03,119.02,0.063]
[1741644996181,39.91656604,119.03,119.02,0.063]
[1741644996493,39.77440447,119.03,119.02,0.063]
[1741644998785,48.39440447,119.03,119.02,0.063]
[1741645001810,57.07992761,119.03,119.02,0.063]
[1741645002814,48.53656604,119.03,119.02,0.063]
[1741645002996,48.39440447,119.03,119.02,0.063]
[1741645006179,48.42440447,119.03,119.02,0.063]
[1741645010289,33.53431447,119.03,119.02,0.063]
[1741645010900,24.91431447,119.03,119.02,0.063]
[1741645011097,33.53431447,119.03,119.02,0.063]
[1741645013399,24.91431447,119.03,119.02,0.063]
[1741645013589,33.53431447,119.03,119.02,0.063]
[1741645021298,0.03,119.03,119.02,24.94731447]
[1741645021501,0.03,119.03,119.02,36.42363761]
[1741645023221,0.03,119.12,119.03,9.88432314]
[1741645023421,0.03,119.12,119.07,24.88431447]
[1741645023422,33.50431447,119.11,119.07,24.88431447]
[1741645023620,33.50431447,119.11,119.06,20.0]
[1741645023621,24.88431447,119.08,119.06,9.6]
[1741645023922,33.50431447,119.07,119.06,9.6]
[1741645024107,33.50431447,119.07,119.02,19.6569]
[1741645024309,24.88431447,119.05,119.02,10.0569]
[1741645024711,24.88431447,119.06,119.02,34.94121447]
[1741645024912,24.88431447,119.06,119.02,55.94601447]
[1741645025222,33.50431447,119.07,119.03,24.88431447]
[1741645025426,24.88431447,119.04,119.02,8.4649]
[1741645025603,24.88431447,119.03,119.02,0.063]
[1741645026319,39.79880225,119.04,119.02,8.4649]
[1741645026508,39.79880225,119.04,119.02,0.063]
[1741645027322,262.33880225,119.06,119.02,48.26360225]
[1741645027520,222.54,119.06,119.03,39.79880225]
[1741645027722,262.33880225,119.06,119.02,69.26840225]
[1741645027905,39.79880225,119.05,119.02,29.4696]
[1741645028105,8.62,119.04,119.02,29.4696]
[1741645028306,8.62,119.04,119.02,69.26840225]
[1741645028721,8.62,119.04,119.02,8.4648]
[1741645029330,48.41880225,119.04,119.02,0.063]
[1741645029509,48.44880225,119.04,119.02,0.063]
[1741645030025,8.65,119.04,119.02,0.063]
[1741645030210,0.03,119.04,119.02,39.86180225]
[1741645030421,0.03,119.04,119.03,40.08312539]
[1741645030622,0.0001,119.04,119.03,40.08312539]
[1741645030931,222.54,119.07,119.06,20.28432314]
[1741645031131,222.54,119.07,119.06,69.68312539]
[1741645031334,222.54,119.07,119.06,84.50312539]
[1741645031511,8.62,119.08,119.06,84.50312539]
[1741645031712,8.62,119.08,119.07,39.79880225]
[1741645032031,8.62,119.1,119.07,39.79880225]
[1741645032231,8.62,119.1,119.07,49.39880225]
[1741645033026,0.03,119.12,119.11,20.0]
[1741645033325,0.03,119.12,119.11,78.07872539]
[1741645033628,0.03,119.12,119.11,9.6]
[1741645033932,39.82880225,119.12,119.08,9.6]
[1741645034228,39.79880225,119.09,119.06,11.1878]
[1741645034411,48.41880225,119.08,119.05,8.3996]
[1741645034612,8.62,119.07,119.05,8.3996]
[1741645034829,8.62,119.07,119.05,48.19840225]
[1741645035026,8.62,119.07,119.06,39.79880225]
[1741645035222,8.62,119.07,119.05,48.19840225]
[1741645035431,8.62,119.07,119.04,49.39880225]
[1741645035633,8.62,119.07,119.04,57.79910225]
[1741645036240,48.41880225,119.07,119.04,18.0003]
[1741645036538,39.79880225,119.05,119.02,8.4647]
[1741645036830,39.79880225,119.03,119.02,0.063]
[1741645039030,48.20000225,119.03,119.02,0.063]
[1741645039221,48.34216382,119.03,119.02,0.063]
[1741645039424,0.14216157,119.02,119.01,0.063]
[1741645039726,20.0,118.99,118.94,0.063]
[1741645039938,39.79880225,118.95,118.94,0.063]
[1741645040118,48.39880225,118.95,118.94,0.063]
[1741645043032,48.39880225,118.95,118.9,0.063]
[1741645043033,0.14216157,118.94,118.9,0.063]
[1741645043344,39.79880225,118.91,118.9,0.063]
[1741645044226,48.41880225,118.91,118.9,0.063]
[1741645047739,230.9068,118.96,118.9,0.063]
[1741645047925,39.79880225,118.91,118.9,0.063]
[1741645048132,48.41880225,118.91,118.9,0.063]
[1741645048439,48.56096382,118.91,118.9,0.063]
[1741645048636,163.68192764,118.9,118.88,0.063]
[1741645048836,20.0,118.86,118.83,0.063]
[1741645049043,39.94096382,118.84,118.83,0.063]
[1741645049339,39.79880225,118.84,118.83,0.063]
[1741645050023,48.41880225,118.84,118.83,0.063]
[1741645054354,56.83340225,118.84,118.83,0.063]
[1741645054535,56.97556382,118.84,118.83,0.063]
[1741645054932,56.97556382,118.84,118.82,13.09483884]
[1741645055255,121.59880225,118.83,118.82,13.09483884]
[1741645055552,121.59880225,118.83,118.81,26.25267768]
[1741645055553,2.14216157,118.82,118.81,26.25267768]
[1741645055723,0.14216157,118.81,118.8,52.37935537]
[1741645055926,39.79880225,118.79,118.78,0.03]
[1741645056228,130.36096382,118.79,118.78,0.03]
[1741645056436,138.77916382,118.79,118.78,0.03]
[1741645056743,130.36096382,118.79,118.78,0.03]
[1741645057128,138.77916382,118.79,118.78,0.03]
[1741645057344,130.36096382,118.79,118.78,0.03]
[1741645058455,138.77916382,118.79,118.78,0.03]
[1741645059034,130.36096382,118.79,118.78,0.03]
[1741645059430,138.77916382,118.79,118.78,0.03]
[1741645060951,130.36096382,118.79,118.78,0.03]
[1741645061139,130.36096382,118.79,118.71,21.0582]
[1741645061140,57.61530948,118.79,118.71,21.0582]
[1741645061462,39.79880225,118.74,118.7,39.79880225]
[1741645061676,8.62,118.73,118.69,39.86180225]
[1741645061849,48.41880225,118.73,118.69,0.063]
[1741645062236,12.97628829,118.72,118.69,0.063]
[1741645062969,21.59628829,118.73,118.7,39.79880225]
[1741645064042,21.59628829,118.73,118.69,8.4883]
[1741645064043,61.39509054,118.73,118.69,8.4883]
[1741645064252,39.79880225,118.7,118.69,0.063]
[1741645064457,39.79880225,118.7,118.66,39.79880225]
[1741645064845,45.44221941,118.7,118.66,39.79880225]
[1741645065248,39.79880225,118.69,118.64,39.79880225]
[1741645065440,12.76024805,118.67,118.64,39.79880225]
[1741645066137,52.5590503,118.67,118.61,21.0774]
[1741645066540,39.79880225,118.67,118.63,39.79880225]
[1741645066748,8.62,118.68,118.64,8.4288]
[1741645066749,48.41880225,118.68,118.64,8.4288]
[1741645067459,48.41880225,118.68,118.66,39.79880225]
[1741645067460,8.62,118.68,118.66,39.79880225]
[1741645067841,8.62,118.68,118.64,69.29970225]
[1741645068047,8.62,118.68,118.65,39.79880225]
[1741645068377,8.62,118.68,118.66,39.79880225]
[1741645068576,12.76024805,118.7,118.67,39.79880225]
[1741645068738,8.62,118.7,118.68,39.79880225]
[1741645069070,48.41880225,118.7,118.66,69.29470225]
[1741645069463,8.62,118.7,118.66,69.29470225]
[1741645069640,8.62,118.7,118.67,39.79880225]
[1741645070465,8.62,118.7,118.66,69.29470225]
[1741645070842,8.62,118.7,118.67,39.79880225]
[1741645071159,39.79880225,118.69,118.66,8.4274]
[1741645071365,8.62,118.7,118.66,8.4274]
[1741645071366,39.79880225,118.67,118.66,8.4274]
[1741645071966,39.79880225,118.67,118.65,8.4278]
[1741645072165,39.79880225,118.66,118.61,48.22970225]
[1741645072349,48.41880225,118.65,118.61,48.22970225]
[1741645072564,48.41880225,118.64,118.61,8.4309]
[1741645072768,8.62,118.63,118.61,8.4309]
[1741645073279,48.41880225,118.63,118.61,8.4309]
[1741645073462,8.62,118.63,118.61,8.4309]
[1741645074059,8.62,118.63,118.62,39.79880225]
[1741645074251,223.1,118.66,118.62,39.79880225]
[1741645074566,48.41880225,118.65,118.61,29.5083]
[1741645074864,48.41880225,118.65,118.61,69.30710225]
[1741645075045,8.62,118.64,118.62,39.79880225]
[1741645075246,223.1,118.66,118.62,39.79880225]
[1741645075447,8.62,118.65,118.62,39.79880225]
[1741645076060,8.62,118.65,118.63,39.79880225]
[1741645076369,231.72,118.66,118.64,39.94096382]
[1741645076568,231.72,118.66,118.65,39.79880225]
[1741645076951,231.72,118.66,118.65,48.22690225]
[1741645077455,231.72,118.66,118.65,8.4281]
[1741645078079,271.51880225,118.66,118.64,8.4285]
[1741645078252,39.79880225,118.65,118.62,8.4302]
[1741645078453,39.79880225,118.64,118.62,8.4302]
[1741645078975,39.79880225,118.65,118.61,39.79880225]
[1741645079161,271.51880225,118.66,118.62,39.79880225]
[1741645079363,39.79880225,118.63,118.56,29.5205]
[1741645079655,39.79880225,118.63,118.59,39.79880225]
[1741645079862,39.79880225,118.63,118.58,39.79880225]
[1741645080067,39.79880225,118.62,118.58,39.79880225]
[1741645080260,8.62,118.61,118.58,39.79880225]
[1741645080463,48.41880225,118.61,118.56,69.31930225]
[1741645080664,39.79880225,118.58,118.54,39.82880225]
[1741645080852,39.79880225,118.58,118.55,8.4352]
[1741645081047,39.79880225,118.59,118.55,8.4352]
[1741645081253,39.79880225,118.58,118.55,8.4352]
[1741645081467,39.79880225,118.57,118.54,8.4659]
[1741645081669,8.62,118.56,118.54,48.26470225]
[1741645082079,8.62,118.56,118.54,8.4659]
[1741645082373,39.79880225,118.55,118.54,0.03]
[1741645083159,271.63880225,118.56,118.54,0.03]
[1741645083354,39.79880225,118.55,118.54,0.03]
[1741645083670,271.63880225,118.56,118.54,0.03]
[1741645083881,39.79880225,118.55,118.54,0.03]
[1741645084174,40.08312539,118.55,118.54,0.03]
[1741645084358,60.49858094,118.55,118.54,0.03]
[1741645084870,60.2142578,118.55,118.51,60.2142578]
[1741645085172,60.2142578,118.55,118.5,8.4687]
[1741645085173,223.22,118.56,118.53,60.2142578]
[1741645085362,223.22,118.56,118.52,8.4373]
[1741645085363,231.84,118.56,118.55,60.2142578]
[1741645085561,231.84,118.56,118.53,0.14216157]
[1741645085771,231.84,118.56,118.55,60.2142578]
[1741645085964,223.22,118.56,118.55,60.2142578]
[1741645086162,8.62,118.59,118.55,60.35641937]
[1741645086381,283.5542578,118.62,118.58,60.2142578]
[1741645086382,223.34,118.62,118.58,60.2142578]
[1741645086673,231.96,118.62,118.59,60.2142578]
[1741645086975,60.2142578,118.61,118.57,60.2142578]
[1741645087474,231.96,118.62,118.58,60.2142578]
[1741645087475,292.1742578,118.62,118.58,60.2142578]
[1741645087655,231.96,118.62,118.58,60.2142578]
[1741645088058,231.96,118.62,118.59,60.2142578]
[1741645088552,231.96,118.62,118.61,60.2142578]
[1741645088749,231.96,118.62,118.6,60.2142578]
[1741645089177,231.96,118.62,118.59,60.2142578]
[1741645090658,231.96,118.62,118.61,60.2142578]
[1741645091053,231.96,118.62,118.6,60.2142578]
[1741645091663,231.96,118.62,118.61,60.2142578]
[1741645091978,6.2131,118.67,118.61,60.49858094]
[1741645092164,223.383,118.68,118.61,60.49858094]
[1741645092165,232.003,118.68,118.65,60.2142578]
[1741645092364,232.003,118.68,118.64,60.2142578]
[1741645092569,292.2172578,118.68,118.63,60.2142578]
[1741645092971,0.063,118.64,118.62,20.0]
[1741645093176,0.063,118.64,118.62,60.2142578]
[1741645093562,0.063,118.64,118.61,89.7225578]
[1741645093760,0.063,118.64,118.63,60.2142578]
[1741645094380,232.003,118.68,118.63,60.2142578]
[1741645094577,232.003,118.68,118.66,60.2142578]
[1741645094763,232.003,118.68,118.67,60.2142578]
[1741645094957,232.003,118.68,118.66,60.2142578]
[1741645095161,232.003,118.68,118.65,60.2142578]
[1741645095381,232.003,118.68,118.64,60.2142578]
[1741645095582,232.003,118.68,118.65,60.2142578]
[1741645095964,292.2172578,118.68,118.63,29.5034]
[1741645096162,292.2172578,118.68,118.63,68.6437578]
[1741645096388,60.2142578,118.66,118.63,8.4295]
[1741645096686,60.2142578,118.65,118.62,8.4299]
[1741645096886,60.2142578,118.64,118.57,0.28432314]
[1741645097064,8.62,118.63,118.59,60.2142578]
[1741645097269,8.62,118.63,118.6,60.2142578]
[1741645097464,8.62,118.63,118.62,60.2142578]
[1741645097667,8.62,118.63,118.62,60.35641937]
[1741645097879,68.8342578,118.66,118.62,60.2142578]
[1741645098184,60.2142578,118.65,118.6,60.2142578]
[1741645098490,60.2142578,118.64,118.6,60.2142578]
[1741645099267,60.2142578,118.65,118.61,68.6451578]
[1741645099468,60.2142578,118.64,118.61,8.4309]
[1741645099991,60.2142578,118.63,118.59,60.2142578]
[1741645100174,60.2142578,118.64,118.6,8.4317]
[1741645100386,60.2142578,118.64,118.6,68.6459578]
[1741645100572,60.2142578,118.65,118.61,60.2142578]
[1741645100775,60.2142578,118.65,118.6,89.7251578]
[1741645100986,68.8342578,118.66,118.62,60.2142578]
[1741645101364,60.2142578,118.66,118.63,8.4295]
[1741645101568,8.62,118.65,118.63,8.4295]
[1741645101772,8.62,118.65,118.64,60.2142578]
[1741645102192,232.003,118.68,118.64,60.2142578]
[1741645102395,232.003,118.68,118.66,60.2142578]
[1741645102567,223.383,118.68,118.67,60.2142578]
[1741645103177,158.5527578,118.74,118.67,60.35641937]
[1741645103178,60.2142578,118.73,118.67,60.35641937]
[1741645103392,8.62,118.72,118.69,60.2142578]
[1741645103894,68.8342578,118.72,118.68,68.6402578]
[1741645104087,68.8342578,118.72,118.69,60.2142578]
[1741645104088,8.62,118.72,118.69,60.2142578]
[1741645104289,8.62,118.72,118.69,40.0063484]
[1741645104680,48.6263484,118.72,118.68,69.4973484]
[1741645105294,40.0063484,118.71,118.68,8.426]
[1741645105498,40.0063484,118.69,118.65,40.0063484]
[1741645106011,40.0063484,118.72,118.68,40.0063484]
[1741645106291,8.62,118.7,118.65,0.28432314]
[1741645106491,8.62,118.71,118.69,40.0063484]
[1741645107003,223.3,118.74,118.69,0.28432314]
[1741645107004,231.92,118.74,118.69,0.28432314]
[1741645107176,231.92,118.74,118.72,40.0063484]
[1741645107376,231.92,118.74,118.73,48.4287484]
[1741645107776,231.92,118.74,118.73,8.4224]
[1741645108079,0.063,118.76,118.73,69.4848484]
[1741645108275,0.063,118.76,118.74,40.0063484]
[1741645108495,0.063,118.76,118.75,40.0063484]
[1741645108878,0.063,118.76,118.74,40.0063484]
[1741645109299,0.063,118.76,118.75,8.421]
[1741645109499,0.063,118.76,118.74,8.4217]
[1741645109801,0.063,118.76,118.74,48.4280484]
[1741645110203,40.0693484,118.76,118.7,29.62796157]
[1741645110374,40.0693484,118.76,118.72,40.0063484]
[1741645110685,0.063,118.76,118.73,40.0063484]
[1741645110886,0.063,118.76,118.72,40.0063484]
[1741645111281,0.063,118.76,118.73,40.0063484]
[1741645111501,0.063,118.76,118.75,40.14850997]
[1741645112092,0.063,118.76,118.75,40.0063484]
[1741645112291,0.063,118.76,118.74,48.4280484]
[1741645112487,0.063,118.76,118.74,8.4217]
[1741645112705,0.063,118.76,118.74,48.4280484]
[1741645113304,0.063,118.76,118.72,21.0569]
[1741645113603,0.063,118.76,118.74,40.0063484]
[1741645114902,0.063,118.76,118.73,0.14216157]
[1741645115206,40.0063484,118.75,118.72,8.4231]
[1741645115902,40.0693484,118.76,118.72,8.4231]
[1741645116109,0.063,118.76,118.73,40.0063484]
[1741645116282,40.0063484,118.75,118.72,8.4231]
[1741645116486,40.0063484,118.74,118.71,8.4238]
[1741645116706,48.6263484,118.73,118.71,8.4238]
[1741645116903,40.0063484,118.72,118.69,8.4253]
[1741645117107,8.62,118.73,118.69,8.4253]
[1741645117307,40.0063484,118.71,118.69,8.4253]
[1741645117490,8.62,118.73,118.65,61.0763484]
[1741645117491,40.0063484,118.7,118.65,61.0763484]
[1741645117698,40.0063484,118.7,118.65,69.5044484]
[1741645118097,40.0063484,118.7,118.66,40.0063484]
[1741645118299,271.5083484,118.74,118.66,40.0063484]
[1741645118497,40.0063484,118.71,118.66,40.0063484]
[1741645118713,40.0063484,118.7,118.66,40.0063484]
[1741645119009,40.0063484,118.69,118.68,0.03]
[1741645119206,40.0063484,118.71,118.68,0.03]
[1741645119515,40.0063484,118.69,118.68,0.03]
[1741645120890,80.0126968,118.69,118.68,0.03]
[1741645121093,40.0063484,118.69,118.68,0.03]
[1741645121509,48.4316484,118.69,118.68,0.03]
[1741645122114,40.0063484,118.69,118.68,0.03]
[1741645122710,88.4379968,118.69,118.68,0.03]
[1741645122895,40.0063484,118.69,118.68,0.03]
[1741645123802,8.62,118.69,118.68,0.03]
[1741645124216,48.6263484,118.69,118.68,0.03]
[1741645124809,8.62,118.69,118.68,0.03]
[1741645125219,40.0063484,118.72,118.68,40.0363484]
[1741645125421,8.62,118.71,118.69,40.0063484]
[1741645125620,8.62,118.72,118.69,40.0063484]
[1741645125802,8.62,118.72,118.7,8.4245]
[1741645126199,8.62,118.72,118.68,40.0363484]
[1741645126412,48.6263484,118.72,118.68,8.4553]
[1741645127110,40.0063484,118.71,118.68,8.4553]
[1741645130613,40.0693484,118.71,118.68,8.4553]
[1741645132016,40.0063484,118.7,118.68,8.4553]
[1741645132218,0.063,118.71,118.68,69.5266484]
[1741645132417,0.063,118.71,118.69,40.0063484]
[1741645132840,0.063,118.71,118.7,40.0063484]
[1741645133213,223.08,118.74,118.71,0.28432314]
[1741645133440,223.08,118.74,118.72,40.0063484]
[1741645133821,223.08,118.74,118.73,8.4224]
[1741645135515,263.0863484,118.74,118.7,48.4308484]
[1741645135944,223.08,118.74,118.71,40.0063484]
[1741645136124,223.08,118.74,118.72,40.0063484]
[1741645136447,223.08,118.74,118.71,40.29067154]
[1741645137234,223.08,118.74,118.72,40.0063484]
[1741645137946,223.08,118.74,118.73,40.0063484]
[1741645138451,223.08,118.74,118.73,40.29067154]
[1741645139337,223.08,118.74,118.72,48.4294484]
[1741645139521,223.08,118.74,118.73,40.29067154]
[1741645139723,223.08,118.74,118.73,40.0063484]
[1741645139932,223.08,118.74,118.71,29.4835]
[1741645140138,223.08,118.74,118.71,69.4898484]
[1741645140440,263.0863484,118.74,118.71,8.4238]
[1741645140644,263.0863484,118.74,118.71,29.4835]
[1741645140645,223.08,118.74,118.71,29.4835]
[1741645140945,263.0863484,118.74,118.71,8.4238]
[1741645141238,40.0063484,118.73,118.68,61.0995484]
[1741645141446,40.0063484,118.71,118.69,8.4253]
[1741645141743,8.6,118.71,118.69,8.4253]
[1741645142228,48.6063484,118.71,118.69,8.4253]
[1741645142432,8.6,118.71,118.68,8.4559]
[1741645142635,8.6,118.71,118.68,69.5272484]
[1741645142954,40.0063484,118.7,118.68,0.03]
[1741645143128,40.0063484,118.69,118.68,0.03]
[1741645143643,8.6,118.71,118.68,8.456]
[1741645143644,40.0063484,118.7,118.68,8.456]
[1741645144044,40.0063484,118.69,118.68,0.03]
[1741645144249,40.0063484,118.7,118.68,0.03]
[1741645144950,40.0063484,118.69,118.68,0.03]
[1741645145352,0.063,118.71,118.69,0.28432314]
[1741645145551,0.063,118.71,118.69,40.0063484]
[1741645145737,40.0063484,118.7,118.68,0.03]
[1741645145923,8.6,118.69,118.68,0.03]
[1741645146122,0.063,118.71,118.68,0.03]
[1741645146323,0.063,118.71,118.68,40.0363484]
[1741645146534,40.0063484,118.7,118.68,0.03]
[1741645146733,0.063,118.71,118.68,40.0363484]
[1741645146945,0.063,118.71,118.7,40.0063484]
[1741645147636,0.063,118.71,118.7,0.28432314]
[1741645147959,0.063,118.71,118.7,8.4245]
[1741645148323,40.0693484,118.71,118.68,0.03]
[1741645148547,40.0693484,118.71,118.68,8.4559]
[1741645148740,40.0063484,118.69,118.68,0.03]
[1741645149435,80.0126968,118.69,118.68,0.03]
[1741645149637,80.0126968,118.69,118.62,0.03]
[1741645149863,40.0063484,118.63,118.62,0.03]
[1741645150155,48.6063484,118.63,118.62,0.03]
[1741645152839,98.88391994,118.63,118.62,0.03]
[1741645153167,98.88391994,118.63,118.56,0.03]
[1741645153339,40.0063484,118.57,118.56,0.03]
[1741645153535,8.62,118.57,118.56,8.4645]
[1741645154352,8.62,118.57,118.56,48.4708484]
[1741645154546,8.62,118.57,118.56,8.4645]
[1741645154752,48.6263484,118.57,118.56,0.03]
[1741645156448,8.62,118.57,118.56,0.03]
[1741645156635,48.6263484,118.57,118.56,0.03]
[1741645156835,8.62,118.57,118.56,0.03]
[1741645157035,40.0063484,118.59,118.56,0.03]
[1741645157036,8.62,118.59,118.56,40.0363484]
[1741645157360,40.0063484,118.58,118.56,0.03]
[1741645158229,8.62,118.58,118.56,0.03]
[1741645158433,48.6263484,118.58,118.56,0.03]
[1741645158654,20.0,118.53,118.5,0.03]
[1741645158838,40.0063484,118.51,118.5,0.03]
[1741645159041,48.6263484,118.52,118.5,0.03]
[1741645159657,8.62,118.51,118.5,8.4685]
[1741645159950,8.62,118.51,118.5,0.03]
[1741645160752,8.62,118.51,118.5,40.0363484]
[1741645161058,223.28,118.53,118.52,20.0]
[1741645161243,223.28,118.53,118.52,60.0063484]
[1741645161445,223.28,118.53,118.52,20.0]
[1741645161644,223.28,118.53,118.5,40.0363484]
[1741645162254,263.2863484,118.53,118.5,8.4681]
[1741645162957,223.28,118.53,118.5,48.4744484]
[1741645163157,223.28,118.53,118.5,69.5714484]
[1741645163457,263.2863484,118.53,118.5,8.4681]
[1741645163666,223.28,118.53,118.5,48.4744484]
[1741645163859,223.28,118.53,118.51,40.0063484]
[1741645164241,223.28,118.53,118.52,8.4373]
[1741645164953,48.6263484,118.54,118.52,8.4373]
[1741645165668,8.62,118.54,118.52,8.4373]
[1741645166564,8.62,118.54,118.53,40.0063484]
[1741645166763,232.0,118.57,118.53,40.0063484]
[1741645166951,232.0,118.57,118.54,40.0063484]
[1741645167664,272.0063484,118.57,118.53,40.0063484]
[1741645168268,263.3863484,118.57,118.53,40.0063484]
[1741645168466,8.62,118.56,118.53,40.0063484]
[1741645168647,8.62,118.56,118.55,8.4352]
[1741645169049,223.38,118.57,118.55,48.4415484]
[1741645169250,223.38,118.57,118.56,40.0063484]
[1741645169452,8.62,118.59,118.56,40.0063484]
[1741645169646,40.0063484,118.61,118.57,40.0063484]
[1741645169872,48.6263484,118.61,118.57,40.0063484]
[1741645170066,263.4693484,118.62,118.58,60.0063484]
[1741645170265,8.62,118.61,118.58,60.0063484]
[1741645170442,232.083,118.62,118.59,40.0063484]
[1741645170643,8.62,118.64,118.61,40.0063484]
[1741645170848,8.62,118.64,118.63,40.0063484]
[1741645171265,8.62,118.64,118.61,40.0063484]
[1741645171967,8.62,118.64,118.62,40.0063484]
[1741645172359,223.4,118.68,118.63,40.0063484]
[1741645172547,263.4063484,118.68,118.64,40.0063484]
[1741645172747,40.0063484,118.67,118.63,40.0063484]
[1741645172950,40.0063484,118.67,118.64,8.4286]
[1741645173264,40.0063484,118.66,118.64,8.4286]
[1741645173967,223.4,118.68,118.65,40.0063484]
[1741645174144,223.4,118.68,118.64,69.5070484]
[1741645174348,40.0063484,118.67,118.64,8.4286]
[1741645174642,263.4063484,118.68,118.64,8.4286]
[1741645174846,40.0063484,118.67,118.64,8.4286]
[1741645175046,223.4,118.68,118.64,8.4286]
[1741645175047,263.4063484,118.68,118.64,8.4286]
[1741645175266,263.4063484,118.68,118.64,29.5007]
[1741645175466,263.4063484,118.68,118.64,69.5070484]
[1741645176050,40.0063484,118.67,118.64,8.4286]
[1741645176651,40.0063484,118.67,118.62,61.36607154]
[1741645176868,40.0063484,118.67,118.63,8.4295]
[1741645177073,40.0063484,118.66,118.63,8.4295]
[1741645177247,40.0063484,118.65,118.63,8.4295]